fUST/lending_fUST_20240908
["ID","MTS","AMOUNT","RATE_DAILY","PERIOD"]
[337544616,1725805867719,-639.86,0.00046575,120]
[337544617,1725805867728,-500.0,0.00046575,120]
[337544618,1725805867738,-756.74,0.00046575,120]
[337544619,1725805867747,-500.0,0.00046575,120]
[337544620,1725805867757,-500.0,0.00046575,120]
[337544621,1725805867767,-500.0,0.00046575,120]
[337544622,1725805867776,-500.0,0.00046575,120]
[337544623,1725805867786,-3183.67,0.00046575,120]
[337544624,1725805867795,-500.0,0.00046575,120]
[337544625,1725805867804,-500.0,0.00046575,120]
[337544626,1725805867813,-500.0,0.00046575,120]
[337544627,1725805867834,-1579.24,0.00046575,120]
[337544628,1725805867844,-500.0,0.00046575,120]
[337544629,1725805867853,-1002.7,0.00046575,120]
[337544630,1725805867863,-3855.05,0.00046575,120]
[337544631,1725805867873,-500.0,0.00046575,120]
[337544632,1725805867883,-500.0,0.00046575,120]
[337544633,1725805867892,-500.0,0.00046575,120]
[337544634,1725805867901,-500.0,0.00046575,120]
[337544635,1725805867911,-1054.78,0.00046575,120]
[337544636,1725805867920,-4259.05,0.00046575,120]
[337544637,1725805867930,-500.0,0.00046575,120]
[337544638,1725805867940,-500.0,0.00046575,120]
[337544639,1725805867949,-500.0,0.00046575,120]
[337544640,1725805867958,-500.94071846,0.00046575,120]
[337544641,1725805867967,-500.0,0.00046575,120]
[337544642,1725805867977,-10994.74,0.00046575,120]
[337544643,1725805867986,-10994.74,0.00046575,120]
[337544644,1725805867996,-10994.74,0.00046575,120]
[337544645,1725805868005,-10994.74,0.00046575,120]
[337544646,1725805868014,-500.0,0.00046575,120]
[337544647,1725805868024,-10994.74,0.00046575,120]
[337544648,1725805868033,-10994.74,0.00046575,120]
[337544649,1725805868043,-10994.74,0.00046575,120]
[337544650,1725805868052,-500.0,0.00046575,120]
[337544651,1725805868062,-10994.74,0.00046575,120]
[337544652,1725805868076,-10994.74,0.00046575,120]
[337544653,1725805868086,-2083.33,0.00046575,120]
[337544654,1725805868095,-10994.74,0.00046575,120]
[337544655,1725805868105,-10994.74,0.00046575,120]
[337544656,1725805868114,-1317.78,0.00046575,120]
[337544657,1725805868123,-10994.74,0.00046575,120]
[337544658,1725805868132,-10994.74,0.00046575,120]
[337544659,1725805868141,-517.33554211,0.00046575,120]
[337544660,1725805868150,-10994.74,0.00046575,120]
[337544661,1725805868160,-500.0,0.00046575,120]
[337544662,1725805868169,-10994.74,0.00046575,120]
[337544663,1725805868179,-10994.74,0.00046575,120]
[337544664,1725805868188,-10994.74,0.00046575,120]
[337544665,1725805868197,-10994.74,0.00046575,120]
[337544666,1725805868207,-10994.74,0.00046575,120]
[337544667,1725805868218,-513.16665977,0.00046575,120]
[337544668,1725805868229,-10994.74,0.00046575,120]
[337544669,1725805868239,-10994.74,0.00046575,120]
[337544670,1725805868248,-10994.74,0.00046575,120]
[337544671,1725805868258,-10994.74,0.00046575,120]
[337544672,1725805868268,-1267.76,0.00046575,120]
[337544673,1725805868277,-500.0,0.00046575,120]
[337544674,1725805868286,-10994.77993801,0.00046575,120]
[337544675,1725805868296,-500.0,0.00046575,120]
[337544676,1725805868305,-500.0,0.00046575,120]
[337544677,1725805868316,-500.0,0.00046575,120]
[337544678,1725805868325,-500.0,0.00046575,120]
[337544679,1725805868334,-3178.06,0.00046575,120]
[337544680,1725805868343,-500.0,0.00046575,120]
[337544681,1725805868353,-5184.01,0.00046575,120]
[337544682,1725805868363,-588.78,0.00046575,120]
[337544683,1725805868372,-500.0,0.00046575,10]
[337544684,1725805868381,-500.0,0.00046575,120]
[337544685,1725805868391,-535.99,0.00046575,120]
[337544686,1725805868537,-500.0,0.00046575,120]
[337544687,1725805868552,-500.0,0.00046575,120]
[337544688,1725805868562,-500.0,0.00046575,120]
[337544689,1725805868574,-3023.99,0.00046575,120]
[337544690,1725805868583,-500.0,0.00046575,120]
[337544691,1725805868593,-522.52803667,0.00046575,120]
[337544692,1725805868602,-500.0,0.00046575,120]
[337544693,1725805868611,-500.0,0.00046575,120]
[337544694,1725805868621,-258.6576031,0.00046575,120]
[337544695,1725805868630,-500.0,0.00046575,120]
[337544696,1725805868640,-500.0,0.00046575,120]
[337544697,1725805868649,-500.0,0.00046575,120]
[337544698,1725805868659,-500.0,0.00046575,120]
[337544699,1725805868668,-500.0,0.00046575,120]
[337544700,1725805868678,-531.07370032,0.00046575,120]
[337544701,1725805868688,-500.0,0.00046575,120]
[337544702,1725805868697,-571.74,0.00046575,120]
[337544703,1725805868706,-504.59981126,0.00046575,120]
[337544704,1725805868716,-500.0,0.00046575,120]
[337544705,1725805868726,-622.8,0.00046575,120]
[337544706,1725805868736,-500.631938,0.00046575,120]
[337544707,1725805868746,-500.0,0.00046575,120]
[337544708,1725805868756,-1447.48,0.00046575,120]
[337544709,1725805868765,-500.60597641,0.00046575,120]
[337544710,1725805868775,-2095.57,0.00046575,120]
[337544711,1725805868784,-500.0,0.00046575,120]
[337544712,1725805868793,-500.0,0.00046575,120]
[337544713,1725805868803,-500.0,0.00046575,120]
[337544714,1725805868813,-4027.69,0.00046575,120]
[337544715,1725805868825,-500.0,0.00046575,120]
[337544716,1725805868836,-500.0,0.00046575,120]
[337544717,1725805868845,-2650.07,0.00046575,120]
[337544718,1725805868855,-500.0,0.00046575,120]
[337544719,1725805868864,-636.12,0.00046575,120]
[337544720,1725805868874,-2388.47,0.00046575,120]
[337544721,1725805868884,-674.33,0.00046575,120]
[337544722,1725805868894,-500.0,0.00046575,120]
[337544723,1725805868904,-3583.25,0.00046575,120]
[337544724,1725805868914,-2356.95,0.00046575,120]
[337544725,1725805868923,-500.0,0.00046575,120]
[337544726,1725805868933,-500.0,0.00046575,120]
[337544727,1725805868943,-500.0,0.00046575,120]
[337544728,1725805868953,-1869.76,0.00046575,120]
[337544729,1725805868962,-3073.31,0.00046575,120]
[337544730,1725805868972,-500.0,0.00046575,120]
[337544731,1725805868981,-500.0,0.00046575,120]
[337544732,1725805868991,-500.0,0.00046575,120]
[337544733,1725805869001,-500.0,0.00046575,120]
[337544734,1725805869011,-500.0,0.00046575,120]
[337544735,1725805869022,-500.0,0.00046575,120]
[337544736,1725805869031,-3853.3,0.00046575,120]
[337544737,1725805869041,-295.70215832,0.00046575,120]
[337544738,1725805869052,-7074.82,0.00046575,120]
[337544739,1725805869062,-153.96434948,0.00046575,120]
[337544740,1725805869074,-500.0,0.00046575,120]
[337544741,1725805869083,-644.27,0.00046575,120]
[337544742,1725805869095,-102728.31,0.00046575,120]
[337544743,1725805869105,-23755.79,0.00046575,120]
[337544744,1725805869115,-545.67967018,0.00046575,120]
[337544745,1725805869125,-500.0,0.00046575,120]
[337544746,1725805869135,-500.0,0.00046575,120]
[337544747,1725805869145,-1564.55,0.00046575,120]
[337544748,1725805869155,-606.98,0.00046575,120]
[337544749,1725805869164,-500.0,0.00046575,120]
[337544750,1725805869174,-500.0,0.00046575,120]
[337544751,1725805869184,-2449.96,0.00046575,120]
[337544752,1725805869195,-500.0,0.00046575,120]
[337544753,1725805869204,-500.0,0.00046575,60]
[337544754,1725805869215,-500.0,0.00046575,120]
[337544755,1725805869225,-500.0,0.00046575,120]
[337544756,1725805869235,-500.0,0.00046575,120]
[337544757,1725805869244,-3064.33,0.00046575,120]
[337544758,1725805869254,-500.58,0.00046575,120]
[337544759,1725805869263,-1746.51,0.00046575,120]
[337544760,1725805869273,-500.0,0.00046575,120]
[337544761,1725805869283,-500.0,0.00046575,120]
[337544762,1725805869294,-500.0,0.00046575,120]
[337544763,1725805869304,-500.0,0.00046575,120]
[337544764,1725805869315,-3749.99,0.00046575,21]
[337544765,1725805869327,-9742.51,0.00046575,120]
[337544766,1725805869340,-500.0,0.00046575,120]
[337544767,1725805869350,-13752.81,0.00046575,120]
[337544768,1725805869359,-963.77,0.00046575,120]
[337544769,1725805869369,-500.0,0.00046575,120]
[337544770,1725805869379,-2137.02,0.00046575,120]
[337544771,1725805869388,-703.33,0.00046575,120]
[337544772,1725805869399,-500.0,0.00046575,120]
[337544773,1725805869408,-500.0,0.00046575,120]
[337544774,1725805869418,-379.4977252,0.00046575,120]
[337544775,1725805869428,-1973.22,0.00046575,120]
[337544776,1725805869438,-1997.07,0.00046575,120]
[337544777,1725805869447,-1997.07,0.00046575,120]
[337544778,1725805869457,-1997.07,0.00046575,120]
[337544779,1725805869466,-1997.07,0.00046575,120]
[337544780,1725805869477,-506.12774343,0.00046575,120]
[337544781,1725805869487,-1997.07,0.00046575,120]
[337544782,1725805869498,-1997.07,0.00046575,120]
[337544783,1725805869508,-14745.27,0.00046575,120]
[337544784,1725805869518,-1997.07,0.00046575,120]
[337544785,1725805869529,-1997.07,0.00046575,120]
[337544786,1725805869539,-500.0,0.00046575,120]
[337544787,1725805869549,-1997.07,0.00046575,120]
[337544788,1725805869560,-1997.07,0.00046575,120]
[337544789,1725805869572,-1997.07,0.00046575,120]
[337544790,1725805869582,-1997.07,0.00046575,120]
[337544791,1725805869592,-1997.07,0.00046575,120]
[337544792,1725805869601,-500.0,0.00046575,120]
[337544793,1725805869613,-1997.07,0.00046575,120]
[337544794,1725805869623,-1997.07,0.00046575,120]
[337544795,1725805869633,-1997.07,0.00046575,120]
[337544796,1725805869643,-500.0,0.00046575,120]
[337544797,1725805869653,-1997.07,0.00046575,120]
[337544798,1725805869663,-4480.49,0.00046575,120]
[337544799,1725805869674,-500.0,0.00046575,120]
[337544800,1725805869684,-1997.07,0.00046575,120]
[337544801,1725805869694,-4480.49,0.00046575,120]
[337544802,1725805869705,-1997.07,0.00046575,120]
[337544803,1725805869715,-4480.49,0.00046575,120]
[337544804,1725805869725,-1997.07,0.00046575,120]
[337544805,1725805869735,-4480.49,0.00046575,120]
[337544806,1725805869744,-4480.49,0.00046575,120]
[337544807,1725805869754,-1997.07,0.00046575,120]
[337544808,1725805869764,-500.0,0.00046575,120]
[337544809,1725805869773,-1997.07,0.00046575,120]
[337544810,1725805869783,-4480.49,0.00046575,120]
[337544811,1725805869793,-1997.07,0.00046575,120]
[337544812,1725805869803,-4480.49,0.00046575,120]
[337544813,1725805869813,-1997.28194586,0.00046575,120]
[337544814,1725805869824,-4480.49,0.00046575,120]
[337544815,1725805869834,-4480.49,0.00046575,120]
[337544816,1725805869844,-4480.49,0.00046575,120]
[337544817,1725805869854,-500.0,0.00046575,120]
[337544818,1725805869864,-5506.22,0.00046575,120]
[337544819,1725805869873,-4480.49,0.00046575,120]
[337544820,1725805869884,-837.11,0.00046575,120]
[337544821,1725805869894,-4480.49,0.00046575,120]
[337544822,1725805869904,-4480.49,0.00046575,120]
[337544823,1725805869915,-4480.49,0.00046575,120]
[337544824,1725805869924,-4480.49,0.00046575,120]
[337544825,1725805869934,-500.0,0.00046575,120]
[337544826,1725805869944,-4480.49,0.00046575,120]
[337544827,1725805869954,-4480.49,0.00046575,120]
[337544828,1725805869963,-4480.49,0.00046575,120]
[337544829,1725805869973,-4480.49,0.00046575,120]
[337544830,1725805869983,-500.0,0.00046575,120]
[337544831,1725805869993,-4480.49,0.00046575,120]
[337544832,1725805870002,-4480.49,0.00046575,120]
[337544833,1725805870012,-2101.71,0.00046575,120]
[337544834,1725805870021,-4480.49,0.00046575,120]
[337544835,1725805870031,-500.0,0.00046575,120]
[337544836,1725805870042,-4480.49,0.00046575,120]
[337544837,1725805870054,-3357.86,0.00046575,120]
[337544838,1725805870064,-4480.65276495,0.00046575,120]
[337544839,1725805870074,-500.0,0.00046575,120]
[337544840,1725805870083,-500.0,0.00046575,120]
[337544841,1725805870093,-595.26617507,0.00046575,3]
[337544842,1725805870103,-2582.17,0.00046575,120]
[337544843,1725805870112,-1071.54,0.00046575,120]
[337544844,1725805870121,-500.0,0.00046575,120]
[337544845,1725805870132,-2112.01,0.00046575,120]
[337544846,1725805870141,-500.0,0.00046575,120]
[337544847,1725805870150,-8902.45,0.00046575,120]
[337544848,1725805870160,-503.45024427,0.00046575,120]
[337544849,1725805870169,-500.0,0.00046575,120]
[337544850,1725805870179,-574.17,0.00046575,120]
[337544851,1725805870188,-500.0,0.00046575,120]
[337544852,1725805870197,-23937.12,0.00046575,120]
[337544853,1725805870208,-500.0,0.00046575,120]
[337544854,1725805870218,-3412.04,0.00046575,120]
[337544855,1725805870228,-2460.34,0.00046575,120]
[337544856,1725805870238,-500.0,0.00046575,120]
[337544857,1725805870247,-500.0,0.00046575,120]
[337544858,1725805870258,-500.0,0.00046575,120]
[337544859,1725805870268,-1782.06,0.00046575,120]
[337544860,1725805870277,-500.0,0.00046575,120]
[337544861,1725805870287,-500.0,0.00046575,120]
[337544862,1725805870297,-510.02757477,0.00046575,120]
[337544863,1725805870306,-500.0,0.00046575,2]
[337544864,1725805870318,-525.15329114,0.00046575,120]
[337544865,1725805870328,-976.47,0.00046575,120]
[337544866,1725805870338,-500.0,0.00046575,120]
[337544867,1725805870348,-1276.39,0.00046575,120]
[337544868,1725805870358,-500.0,0.00046575,120]
[337544869,1725805870367,-526.53039187,0.00046575,120]
[337544870,1725805870377,-500.0,0.00046575,120]
[337544871,1725805870387,-500.0,0.00046575,120]
[337544872,1725805870397,-500.0,0.00046575,120]
[337544873,1725805870407,-500.0,0.00046575,120]
[337544874,1725805870417,-500.0,0.00046575,120]
[337544875,1725805870427,-500.0,0.00046575,120]
[337544876,1725805870437,-500.0,0.00046575,120]
[337544877,1725805870447,-500.0,0.00046575,120]
[337544878,1725805870458,-500.0,0.00046575,120]
[337544879,1725805870468,-500.0,0.00046575,120]
[337544880,1725805870479,-1603.97,0.00046575,120]
[337544881,1725805870488,-500.0,0.00046575,120]
[337544882,1725805870498,-500.0,0.00046575,120]
[337544883,1725805870508,-500.0,0.00046575,120]
[337544884,1725805870519,-500.0,0.00046575,120]
[337544885,1725805870530,-5806.88,0.00046575,120]
[337544886,1725805870540,-500.0,0.00046575,120]
[337544887,1725805870550,-500.0,0.00046575,120]
[337544888,1725805870561,-500.0,0.00046575,120]
[337544889,1725805870575,-286.83757908,0.00046575,120]
[337544890,1725805870584,-500.0,0.00046575,120]
[337544891,1725805870594,-1279.78,0.00046575,120]
[337544892,1725805870605,-500.0,0.00046575,120]
[337544893,1725805870620,-534.03,0.00046575,120]
[337544894,1725805870631,-1024.51,0.00046575,120]
[337544895,1725805870642,-500.0,0.00046575,120]
[337544896,1725805870653,-500.0,0.00046575,120]
[337544897,1725805870663,-260.14133413,0.00046575,120]
[337544898,1725805870676,-1275.45,0.00046575,120]
[337544899,1725805870687,-500.0,0.00046575,120]
[337544900,1725805870698,-500.0,0.00046575,120]
[337544901,1725805870711,-2254.71,0.00046575,120]
[337544902,1725805870722,-3406.69,0.00046575,120]
[337544903,1725805870733,-500.0,0.00046575,120]
[337544904,1725805870746,-500.0,0.00046575,120]
[337544905,1725805870755,-1262.14,0.00046575,120]
[337544906,1725805870766,-500.0,0.00046575,120]
[337544907,1725805870776,-500.0,0.00046575,120]
[337544908,1725805870786,-582.4,0.00046575,120]
[337544909,1725805870797,-227.69402677,0.00046575,120]
[337544910,1725805870807,-500.0,0.00046575,120]
[337544911,1725805870818,-501.41542047,0.00046575,120]
[337544912,1725805870834,-500.0,0.00046575,120]
[337544913,1725805870844,-500.0,0.00046575,120]
[337544914,1725805870856,-500.0,0.00046575,120]
[337544915,1725805870866,-259.5448902,0.00046575,120]
[337544916,1725805870877,-500.0,0.00046575,120]
[337544917,1725805870887,-500.0,0.00046575,120]
[337544918,1725805870898,-1000.0,0.00046575,120]
[337544919,1725805870908,-500.0,0.00046575,2]
[337544920,1725805870919,-536.8355618,0.00046575,120]
[337544921,1725805870930,-500.0,0.00046575,30]
[337544922,1725805870940,-14687.42,0.00046575,120]
[337544923,1725805870951,-500.0,0.00046575,120]
[337544924,1725805870961,-500.0,0.00046575,120]
[337544925,1725805870971,-500.0,0.00046575,120]
[337544926,1725805870981,-500.0,0.00046575,120]
[337544927,1725805870991,-500.0,0.00046575,120]
[337544928,1725805871001,-307.57598317,0.00046575,120]
[337544929,1725805871010,-500.0,0.00046575,120]
[337544930,1725805871020,-500.0,0.00046575,120]
[337544931,1725805871083,-500.0,0.00046575,120]
[337544932,1725805871092,-5272.46,0.00046575,120]
[337544933,1725805871103,-2811.07,0.00046575,120]
[337544934,1725805871113,-500.0,0.00046575,120]
[337544935,1725805871122,-500.0,0.00046575,2]
[337544936,1725805871132,-500.0,0.00046575,120]
[337544937,1725805871142,-1106.81,0.00046575,120]
[337544938,1725805871151,-504.73,0.00046575,120]
[337544939,1725805871161,-2345.52,0.00046575,120]
[337544940,1725805871170,-500.0,0.00046575,20]
[337544941,1725805871179,-500.0,0.00046575,120]
[337544942,1725805871189,-500.0,0.00046575,120]
[337544943,1725805871199,-2986.05,0.00046575,120]
[337544944,1725805871208,-5000.0,0.00046575,120]
[337544945,1725805871218,-988.28,0.00046575,120]
[337544946,1725805871228,-500.0,0.00046575,120]
[337544947,1725805871237,-502.15937499,0.00046575,120]
[337544948,1725805871246,-500.0,0.00046575,120]
[337544949,1725805871255,-500.0,0.00046575,2]
[337544950,1725805871265,-500.0,0.00046575,30]
[337544951,1725805871275,-500.0,0.00046575,30]
[337544952,1725805871284,-500.0,0.00046575,30]
[337544953,1725805871293,-500.0,0.00046575,30]
[337544954,1725805871303,-500.0,0.00046575,30]
[337544955,1725805871313,-500.0,0.00046575,120]
[337544956,1725805871324,-500.0,0.00046575,30]
[337544957,1725805871333,-774.97,0.00046575,120]
[337544958,1725805871343,-500.0,0.00046575,120]
[337544959,1725805871353,-500.0,0.00046575,30]
[337544960,1725805871363,-500.0,0.00046575,30]
[337544961,1725805871373,-281.78620312,0.00046575,30]
[337544962,1725805871382,-503.82947047,0.00046575,120]
[337544963,1725805871392,-2940.53,0.00046575,120]
[337544964,1725805871402,-2486.72,0.00046575,120]
[337544965,1725805871412,-500.0,0.00046575,120]
[337544966,1725805871422,-500.71394722,0.00046575,120]
[337544967,1725805871432,-500.0,0.00046575,120]
[337544968,1725805871443,-391.4560264,0.00046575,120]
[337544969,1725805871452,-2054.2,0.00046575,120]
[337544970,1725805871462,-500.0,0.00046575,120]
[337544971,1725805871472,-3307.1,0.00046575,120]
[337544972,1725805871482,-4017.77,0.00046575,120]
[337544973,1725805871492,-548.39,0.00046575,120]
[337544974,1725805871502,-500.0,0.00046575,120]
[337544975,1725805871512,-567.81218157,0.00046575,120]
[337544976,1725805871522,-500.0,0.00046575,120]
[337544977,1725805871532,-3267.98,0.00046575,120]
[337544978,1725805871543,-368.59466397,0.00046575,120]
[337544979,1725805871553,-1134.8,0.00046575,120]
[337544980,1725805871563,-4690.76,0.00046575,120]
[337544981,1725805871574,-666.78,0.00046575,120]
[337544982,1725805871584,-500.0,0.00046575,120]
[337544983,1725805871594,-500.0,0.00046575,120]
[337544984,1725805871604,-500.0,0.00046575,120]
[337544985,1725805871615,-500.0,0.00046575,120]
[337544986,1725805871626,-950.66,0.00046575,120]
[337544987,1725805871637,-500.0,0.00046575,120]
[337544988,1725805871647,-302.85540629,0.00046575,120]
[337544989,1725805871657,-500.0,0.00046575,120]
[337544990,1725805871667,-500.0,0.00046575,120]
[337544991,1725805871678,-876.05,0.00046575,120]
[337544992,1725805871688,-5751.99,0.00046575,120]
[337544993,1725805871698,-500.0,0.00046575,120]
[337544994,1725805871708,-603.49691016,0.00046575,120]
[337544995,1725805871717,-500.0,0.00046575,120]
[337544996,1725805871727,-500.0,0.00046575,120]
[337544997,1725805871738,-500.0,0.00046575,120]
[337544998,1725805871748,-500.0,0.00046575,120]
[337544999,1725805871758,-500.0,0.00046575,120]
[337545000,1725805871768,-500.0,0.00046575,120]
[337545001,1725805871778,-500.0,0.00046575,120]
[337545002,1725805871789,-500.0,0.00046575,120]
[337545003,1725805871799,-6894.3,0.00046575,120]
[337545004,1725805871809,-696.86626155,0.00046579,2]
[337545005,1725805871820,-500.0,0.00046849,30]
[337545006,1725805871831,-151.0,0.00047096,120]
[337545007,1725805871842,-800.0,0.00047123,38]
[337545008,1725805871852,-2500.0,0.0004731,6]
[337545009,1725805871862,-800.0,0.00047544,30]
[337545010,1725805871872,-500.0,0.00047671,120]
[337545011,1725805871883,-500.0,0.00047671,120]
[337545012,1725805871893,-510.08994212,0.00047671,120]
[337545013,1725805871903,-500.0,0.00047671,120]
[337545014,1725805871914,-500.0,0.00047671,120]
[337545015,1725805871924,-500.0,0.00047671,120]
[337545016,1725805871934,-500.0,0.00047671,120]
[337545017,1725805871945,-500.0,0.00047671,120]
[337545018,1725805871955,-500.0,0.00047671,120]
[337545019,1725805871966,-500.0,0.00047671,120]
[337545020,1725805871976,-500.0,0.00047671,120]
[337545021,1725805871986,-500.0,0.00047671,120]
[337545022,1725805871996,-500.0,0.00047671,120]
[337545023,1725805872007,-500.0,0.00047671,120]
[337545024,1725805872017,-500.0,0.00047671,120]
[337545025,1725805872028,-500.0,0.00047671,120]
[337545026,1725805872039,-500.0,0.00047671,120]
[337545027,1725805872050,-500.0,0.00047671,120]
[337545028,1725805872061,-500.0,0.00047671,120]
[337545029,1725805872076,-500.0,0.00047671,120]
[337545030,1725805872087,-500.0,0.00047671,120]
[337545031,1725805872097,-500.0,0.00047671,120]
[337545032,1725805872108,-500.0,0.00047671,120]
[337545033,1725805872119,-500.0,0.00047671,60]
[337545034,1725805872129,-500.0,0.00047671,120]
[337545035,1725805872142,-500.0,0.00047671,120]
[337545036,1725805872153,-500.0,0.00047671,120]
[337545037,1725805872164,-500.56756487,0.00047671,120]
[337545038,1725805872175,-673.59,0.00047671,120]
[337545039,1725805872186,-911.08,0.00047671,120]
[337545040,1725805872196,-500.0,0.00047671,120]
[337545041,1725805872206,-500.0,0.00047671,120]
[337545042,1725805872217,-500.0,0.00047671,120]
[337545043,1725805872229,-1000.0,0.00047671,120]
[337545044,1725805872239,-500.0,0.00047671,120]
[337545045,1725805872250,-500.0,0.00047671,120]
[337545046,1725805872262,-629.21,0.00047671,120]
[337545047,1725805872272,-500.0,0.00047671,120]
[337545048,1725805872283,-500.0,0.00047671,120]
[337545049,1725805872293,-500.0,0.00047671,120]
[337545050,1725805872304,-647.52,0.00047671,120]
[337545051,1725805872314,-883.64,0.00047671,120]
[337545052,1725805872325,-500.0,0.00047671,120]
[337545053,1725805872336,-500.0,0.00047671,120]
[337545054,1725805872346,-500.0,0.00047671,120]
[337545055,1725805872357,-500.0,0.00047671,120]
[337545056,1725805872366,-500.0,0.00047671,120]
[337545057,1725805872377,-500.0,0.00047671,120]
[337545058,1725805872387,-500.0,0.00047671,120]
[337545059,1725805872398,-500.0,0.00047671,120]
[337545060,1725805872410,-695.11,0.00047671,120]
[337545061,1725805872422,-500.0,0.00047671,120]
[337545062,1725805872432,-539.71,0.00047671,120]
[337545063,1725805872444,-500.0,0.00047671,120]
[337545064,1725805872454,-482.14139735,0.00047671,120]
[337545065,1725805872466,-500.0,0.00047671,120]
[337545066,1725805872477,-500.0,0.00047671,120]
[337545067,1725805872488,-500.0,0.00047671,120]
[337545068,1725805872499,-500.0,0.00047671,120]
[337545069,1725805872509,-1337.0,0.00047671,120]
[337545070,1725805872520,-500.0,0.00047671,120]
[337545071,1725805872530,-500.0,0.00047671,120]
[337545072,1725805872542,-513.57500157,0.00047671,120]
[337545073,1725805872553,-500.0,0.00047671,120]
[337545074,1725805872565,-1005.43,0.00047671,120]
[337545075,1725805872582,-519.26,0.00047671,120]
[337545076,1725805872596,-501.09594793,0.00047671,120]
[337545077,1725805872610,-500.0,0.00047671,120]
[337545078,1725805872624,-500.0,0.00047671,120]
[337545079,1725805872640,-500.0,0.00047671,120]
[337545080,1725805872655,-500.0,0.00047671,120]
[337545081,1725805872669,-500.0,0.00047671,120]
[337545082,1725805872682,-500.0,0.00047671,120]
[337545083,1725805872697,-500.0,0.00047671,120]
[337545084,1725805872712,-500.0,0.00047671,120]
[337545085,1725805872726,-500.0,0.00047671,120]
[337545086,1725805872742,-500.0,0.00047671,120]
[337545087,1725805872756,-500.0,0.00047671,120]
[337545088,1725805872771,-500.0,0.00047671,120]
[337545089,1725805872785,-500.0,0.00047671,30]
[337545090,1725805872800,-509.09058102,0.00047671,120]
[337545091,1725805872814,-1000.0,0.00047671,120]
[337545092,1725805872829,-500.0,0.00047671,120]
[337545093,1725805872842,-500.0,0.00047671,120]
[337545094,1725805872856,-500.0,0.00047671,120]
[337545095,1725805872869,-500.0,0.00047671,120]
[337545096,1725805872882,-500.0,0.00047671,120]
[337545097,1725805872897,-777.71,0.00047671,120]
[337545098,1725805872910,-500.0,0.00047671,120]
[337545099,1725805872924,-536.44,0.00047671,120]
[337545100,1725805872936,-500.0,0.00047671,120]
[337545101,1725805872950,-500.0,0.00047671,120]
[337545102,1725805872963,-550.74947196,0.00047671,120]
[337545103,1725805872976,-500.0,0.00047671,120]
[337545104,1725805872989,-500.0,0.00047671,120]
[337545105,1725805873003,-500.0,0.00047671,120]
[337545106,1725805873018,-500.0,0.00047671,120]
[337545107,1725805873030,-280.49000129,0.00047671,120]
[337545108,1725805873043,-500.0,0.00047671,120]
[337545109,1725805873064,-395.06,0.00047671,120]
[337545110,1725805873077,-500.0,0.00047671,120]
[337545111,1725805873088,-500.0,0.00047671,120]
[337545112,1725805873103,-500.0,0.00047671,120]
[337545113,1725805873116,-1035.22,0.00047671,120]
[337545114,1725805873129,-500.0,0.00047671,120]
[337545115,1725805873145,-500.0,0.00047671,120]